[Event "Titled Tuesday Blitz August 08 Late 2023"]
[White "K2JW"]
[Black "Petersson, Kjell"]
[BlackFideId "1705148"]
[WhiteElo "2359"]
[BlackElo "2202"]
[Result "1-0"]
[Round "5"]
[TimeControl "180+1"]
[Date "2023.08.08"]
[WhiteClock "0:00:23"]
[BlackClock "0:00:18"]
[Board "150"]

1. d4 {[%clk 0:03:00]}  f5 {[%clk 0:02:59]} 2. c4 {[%clk 0:02:58]}  Nf6 {[%clk 0:02:59]} 3. g3 {[%clk 0:02:59]}  e6 {[%clk 0:03:00]} 4. Bg2 {[%clk 0:03:00]}  d5 {[%clk 0:02:59]} 5. Nf3 {[%clk 0:02:59]}  c6 {[%clk 0:02:59]} 6. O-O {[%clk 0:02:58]}  Bd6 {[%clk 0:02:59]} 7. b3 {[%clk 0:02:57]}  Qe7 {[%clk 0:02:59]} 8. a4 {[%clk 0:02:57]}  a5 {[%clk 0:02:58]} 9. Ba3 {[%clk 0:02:57]}  Na6 {[%clk 0:02:51]} 10. Bxd6 {[%clk 0:02:54]}  Qxd6 {[%clk 0:02:52]} 11. Ne5 {[%clk 0:02:50]}  O-O {[%clk 0:02:51]} 12. Nd2 {[%clk 0:02:43]}  Bd7 {[%clk 0:02:50]} 13. e3 {[%clk 0:02:38]}  Be8 {[%clk 0:02:49]} 14. Ndf3 {[%clk 0:02:28]}  Bh5 {[%clk 0:02:48]} 15. Qd2 {[%clk 0:02:24]}  Bxf3 {[%clk 0:02:43]} 16. Bxf3 {[%clk 0:02:22]}  Nb4 {[%clk 0:02:43]} 17. Rac1 {[%clk 0:02:18]}  Rae8 {[%clk 0:02:25]} 18. Bg2 {[%clk 0:02:13]}  Nd7 {[%clk 0:02:23]} 19. f4 {[%clk 0:02:02]}  Nxe5 {[%clk 0:02:19]} 20. fxe5 {[%clk 0:01:52]}  Qe7 {[%clk 0:02:16]} 21. cxd5 {[%clk 0:01:51]}  exd5 {[%clk 0:02:15]} 22. Rf2 {[%clk 0:01:49]}  Qg5 {[%clk 0:02:14]} 23. Rcf1 {[%clk 0:01:45]}  Re7 {[%clk 0:02:12]} 24. Qe2 {[%clk 0:01:33]}  g6 {[%clk 0:02:07]} 25. e4 {[%clk 0:01:23]}  dxe4 {[%clk 0:02:03]} 26. Bxe4 {[%clk 0:01:23]}  Rd8 {[%clk 0:01:58]} 27. Qc4+ {[%clk 0:01:23]}  Kh8 {[%clk 0:01:48]} 28. Bg2 {[%clk 0:01:00]}  Red7 {[%clk 0:01:47]} 29. e6 {[%clk 0:00:56]}  Rxd4 {[%clk 0:01:44]} 30. Qe2 {[%clk 0:00:57]}  Re8 {[%clk 0:01:40]} 31. Qe5+ {[%clk 0:00:55]}  Kg8 {[%clk 0:01:38]} 32. Qxd4 {[%clk 0:00:55]}  Rxe6 {[%clk 0:01:37]} 33. Rd2 {[%clk 0:00:51]}  Re8 {[%clk 0:01:27]} 34. Qd7 {[%clk 0:00:45]}  Rf8 {[%clk 0:01:20]} 35. Qe6+ {[%clk 0:00:43]}  Kg7 {[%clk 0:01:18]} 36. Rd7+ {[%clk 0:00:42]}  Kh6 {[%clk 0:01:18]} 37. Rf4 {[%clk 0:00:31]}  Rf6 {[%clk 0:00:58]} 38. Qe3 {[%clk 0:00:25]}  Qxf4 {[%clk 0:00:18]} 39. gxf4 {[%clk 0:00:23]} 1-0


[Site "https://www.chess.com"]

[Event "Titled Tuesday Blitz August 08 Late 2023"]
[White "Ortmann, David"]
[Black "Butti, Enrique"]
[WhiteFideId "4651588"]
[BlackFideId "3700470"]
[WhiteElo "2355"]
[BlackElo "2201"]
[Result "0-1"]
[Round "5"]
[TimeControl "180+1"]
[Date "2023.08.08"]
[WhiteClock "0:00:00"]
[BlackClock "0:00:20"]
[Board "152"]

1. Nf3 {[%clk 0:03:00]}  d6 {[%clk 0:02:58]} 2. d4 {[%clk 0:03:00]}  Bg4 {[%clk 0:02:57]} 3. c4 {[%clk 0:02:58]}  Nd7 {[%clk 0:02:54]} 4. Nc3 {[%clk 0:02:55]}  e5 {[%clk 0:02:53]} 5. g3 {[%clk 0:02:55]}  Ngf6 {[%clk 0:02:47]} 6. dxe5 {[%clk 0:02:44]}  dxe5 {[%clk 0:02:46]} 7. Be3 {[%clk 0:02:34]}  Bb4 {[%clk 0:02:39]} 8. Qb3 {[%clk 0:02:33]}  Bxc3+ {[%clk 0:02:34]} 9. Qxc3 {[%clk 0:02:18]}  Bxf3 {[%clk 0:02:28]} 10. exf3 {[%clk 0:02:19]}  Qe7 {[%clk 0:02:26]} 11. Bh3 {[%clk 0:02:18]}  O-O {[%clk 0:02:24]} 12. O-O {[%clk 0:02:14]}  a5 {[%clk 0:02:22]} 13. Rfe1 {[%clk 0:02:03]}  Rfe8 {[%clk 0:02:20]} 14. f4 {[%clk 0:01:58]}  e4 {[%clk 0:02:10]} 15. Rad1 {[%clk 0:01:28]}  b6 {[%clk 0:01:44]} 16. Bd4 {[%clk 0:01:15]}  c5 {[%clk 0:01:41]} 17. Bxf6 {[%clk 0:00:30]}  Nxf6 {[%clk 0:01:39]} 18. Bg2 {[%clk 0:00:31]}  Qc7 {[%clk 0:01:29]} 19. Rd2 {[%clk 0:00:29]}  h6 {[%clk 0:01:20]} 20. Red1 {[%clk 0:00:29]}  Rad8 {[%clk 0:01:17]} 21. h3 {[%clk 0:00:29]}  Rxd2 {[%clk 0:01:11]} 22. Qxd2 {[%clk 0:00:30]}  Qc6 {[%clk 0:00:59]} 23. Qd6 {[%clk 0:00:29]}  Qa4 {[%clk 0:00:53]} 24. b3 {[%clk 0:00:28]}  Qxa2 {[%clk 0:00:51]} 25. Qxb6 {[%clk 0:00:28]}  Qe2 {[%clk 0:00:49]} 26. Rf1 {[%clk 0:00:24]}  e3 {[%clk 0:00:48]} 27. fxe3 {[%clk 0:00:24]}  Qxe3+ {[%clk 0:00:47]} 28. Kh2 {[%clk 0:00:24]}  Qd2 {[%clk 0:00:37]} 29. Qxc5 {[%clk 0:00:14]}  Re2 {[%clk 0:00:36]} 30. Qc8+ {[%clk 0:00:14]}  Kh7 {[%clk 0:00:34]} 31. Rg1 {[%clk 0:00:10]}  g6 {[%clk 0:00:29]} 32. Qb7 {[%clk 0:00:08]}  Kg7 {[%clk 0:00:26]} 33. c5 {[%clk 0:00:09]}  Nh5 {[%clk 0:00:23]} 34. c6 {[%clk 0:00:00]}  Qe3 {[%clk 0:00:20]} 0-1


[Site "https://www.chess.com"]

[Event "Titled Tuesday Blitz August 08 Late 2023"]
[White "Oliveira, Tiago Batista"]
[Black "Pavlidou, Ekaterini"]
[WhiteFideId "2108291"]
[BlackFideId "4213262"]
[WhiteElo "2187"]
[BlackElo "2352"]
[Result "0-1"]
[Round "5"]
[TimeControl "180+1"]
[Date "2023.08.08"]
[WhiteClock "0:00:00"]
[BlackClock "0:00:39"]
[Board "153"]

1. d4 {[%clk 0:03:00]}  Nf6 {[%clk 0:02:50]} 2. c4 {[%clk 0:03:00]}  e6 {[%clk 0:02:50]} 3. Nf3 {[%clk 0:02:59]}  b6 {[%clk 0:02:49]} 4. g3 {[%clk 0:02:59]}  Ba6 {[%clk 0:02:48]} 5. Qc2 {[%clk 0:02:56]}  c6 {[%clk 0:02:47]} 6. Bg2 {[%clk 0:02:55]}  d5 {[%clk 0:02:47]} 7. Nbd2 {[%clk 0:02:53]}  Nbd7 {[%clk 0:02:47]} 8. O-O {[%clk 0:02:52]}  Be7 {[%clk 0:02:44]} 9. Rd1 {[%clk 0:02:51]}  Rc8 {[%clk 0:02:44]} 10. b3 {[%clk 0:02:46]}  O-O {[%clk 0:02:44]} 11. e4 {[%clk 0:02:42]}  c5 {[%clk 0:02:44]} 12. exd5 {[%clk 0:02:29]}  exd5 {[%clk 0:02:43]} 13. dxc5 {[%clk 0:02:28]}  Nxc5 {[%clk 0:02:40]} 14. Bb2 {[%clk 0:02:24]}  b5 {[%clk 0:02:37]} 15. Qf5 {[%clk 0:02:17]}  bxc4 {[%clk 0:02:34]} 16. Nxc4 {[%clk 0:02:10]}  Bxc4 {[%clk 0:02:26]} 17. bxc4 {[%clk 0:02:08]}  Na4 {[%clk 0:02:26]} 18. Bxf6 {[%clk 0:02:05]}  Bxf6 {[%clk 0:02:26]} 19. Rxd5 {[%clk 0:02:04]}  Bxa1 {[%clk 0:02:25]} 20. Rxd8 {[%clk 0:02:03]}  Rfxd8 {[%clk 0:02:26]} 21. Ng5 {[%clk 0:01:27]}  Rd1+ {[%clk 0:02:16]} 22. Bf1 {[%clk 0:01:26]}  Rc7 {[%clk 0:02:03]} 23. Qxh7+ {[%clk 0:00:57]}  Kf8 {[%clk 0:02:02]} 24. Qc2 {[%clk 0:00:35]}  Nc3 {[%clk 0:02:02]} 25. Kg2 {[%clk 0:00:30]}  Rc5 {[%clk 0:01:35]} 26. Ne4 {[%clk 0:00:19]}  Rxf1 {[%clk 0:01:25]} 27. Kxf1 {[%clk 0:00:18]}  Nxe4 {[%clk 0:01:23]} 28. Qxe4 {[%clk 0:00:18]}  Rc7 {[%clk 0:01:22]} 29. h4 {[%clk 0:00:16]}  Bf6 {[%clk 0:01:21]} 30. h5 {[%clk 0:00:15]}  Bg5 {[%clk 0:01:14]} 31. g4 {[%clk 0:00:14]}  Bf6 {[%clk 0:01:11]} 32. f4 {[%clk 0:00:14]}  Kg8 {[%clk 0:01:06]} 33. g5 {[%clk 0:00:13]}  Bc3 {[%clk 0:01:03]} 34. g6 {[%clk 0:00:13]}  Kf8 {[%clk 0:00:58]} 35. Qa8+ {[%clk 0:00:08]}  Ke7 {[%clk 0:00:58]} 36. Qg8 {[%clk 0:00:07]}  fxg6 {[%clk 0:00:58]} 37. hxg6 {[%clk 0:00:07]}  Kf6 {[%clk 0:00:57]} 38. Ke2 {[%clk 0:00:02]}  Kxg6 {[%clk 0:00:55]} 39. Kd3 {[%clk 0:00:02]}  Bf6 {[%clk 0:00:55]} 40. Qe6 {[%clk 0:00:03]}  Re7 {[%clk 0:00:55]} 41. f5+ {[%clk 0:00:01]}  Kg5 {[%clk 0:00:54]} 42. Qa6 {[%clk 0:00:02]}  Rd7+ {[%clk 0:00:52]} 43. Kc2 {[%clk 0:00:01]}  Kxf5 {[%clk 0:00:49]} 44. Qb5+ {[%clk 0:00:01]}  Ke6 {[%clk 0:00:49]} 45. c5 {[%clk 0:00:01]}  Be5 {[%clk 0:00:47]} 46. c6 {[%clk 0:00:01]}  Rc7 {[%clk 0:00:48]} 47. Qc4+ {[%clk 0:00:02]}  Kf5 {[%clk 0:00:48]} 48. Kb3 {[%clk 0:00:02]}  g5 {[%clk 0:00:48]} 49. Ka4 {[%clk 0:00:02]}  g4 {[%clk 0:00:48]} 50. Kb5 {[%clk 0:00:02]}  g3 {[%clk 0:00:48]} 51. a4 {[%clk 0:00:03]}  g2 {[%clk 0:00:46]} 52. Qc2+ {[%clk 0:00:02]}  Ke6 {[%clk 0:00:44]} 53. Qxg2 {[%clk 0:00:02]}  Kd6 {[%clk 0:00:44]} 54. Qf3 {[%clk 0:00:02]}  Ke6 {[%clk 0:00:44]} 55. Qe4 {[%clk 0:00:02]}  Kd6 {[%clk 0:00:44]} 56. Qd3+ {[%clk 0:00:02]}  Ke6 {[%clk 0:00:44]} 57. Qc4+ {[%clk 0:00:03]}  Kd6 {[%clk 0:00:44]} 58. Qc5+ {[%clk 0:00:03]}  Ke6 {[%clk 0:00:45]} 59. Qc4+ {[%clk 0:00:03]}  Kd6 {[%clk 0:00:45]} 60. Qd3+ {[%clk 0:00:03]}  Ke6 {[%clk 0:00:45]} 61. Kc5 {[%clk 0:00:04]}  Kf6 {[%clk 0:00:44]} 62. Qd5 {[%clk 0:00:04]}  Kf5 {[%clk 0:00:43]} 63. a5 {[%clk 0:00:04]}  Kf4 {[%clk 0:00:42]} 64. Qd7 {[%clk 0:00:03]}  Rxd7 {[%clk 0:00:41]} 65. cxd7 {[%clk 0:00:03]}  Bc7 {[%clk 0:00:41]} 66. a6 {[%clk 0:00:03]}  Ke5 {[%clk 0:00:40]} 67. Kc6 {[%clk 0:00:03]}  Bb6 {[%clk 0:00:40]} 68. Kb7 {[%clk 0:00:04]}  Kd6 {[%clk 0:00:39]} 69. Kc8 {[%clk 0:00:00]}  Kc6 {[%clk 0:00:39]} 0-1


[Site "https://www.chess.com"]

[Event "Titled Tuesday Blitz August 08 Late 2023"]
[White "Novikova, Margarita"]
[Black "Mazibuko, Khanya"]
[WhiteFideId "14109689"]
[BlackFideId "14321041"]
[WhiteElo "2140"]
[BlackElo "2338"]
[Result "0-1"]
[Round "5"]
[TimeControl "180+1"]
[Date "2023.08.08"]
[WhiteClock "0:00:00"]
[BlackClock "0:00:44"]
[Board "154"]

1. e4 {[%clk 0:02:57]}  e5 {[%clk 0:02:59]} 2. Nf3 {[%clk 0:02:57]}  Nc6 {[%clk 0:02:58]} 3. Bb5 {[%clk 0:02:58]}  a6 {[%clk 0:02:58]} 4. Ba4 {[%clk 0:02:58]}  Nf6 {[%clk 0:02:58]} 5. O-O {[%clk 0:02:57]}  Be7 {[%clk 0:02:57]} 6. Re1 {[%clk 0:02:52]}  b5 {[%clk 0:02:58]} 7. Bb3 {[%clk 0:02:52]}  O-O {[%clk 0:02:58]} 8. c3 {[%clk 0:02:51]}  d5 {[%clk 0:02:58]} 9. exd5 {[%clk 0:02:49]}  Nxd5 {[%clk 0:02:59]} 10. Nxe5 {[%clk 0:02:47]}  Nxe5 {[%clk 0:03:00]} 11. Rxe5 {[%clk 0:02:47]}  Nf6 {[%clk 0:03:00]} 12. d4 {[%clk 0:02:42]}  Bd6 {[%clk 0:03:00]} 13. Re1 {[%clk 0:02:36]}  Ng4 {[%clk 0:03:01]} 14. h3 {[%clk 0:02:31]}  Qh4 {[%clk 0:02:59]} 15. Qf3 {[%clk 0:02:28]}  Nxf2 {[%clk 0:02:59]} 16. Re8 {[%clk 0:01:45]}  Bb7 {[%clk 0:01:07]} 17. Rxf8+ {[%clk 0:00:53]}  Rxf8 {[%clk 0:01:02]} 18. Qxf2 {[%clk 0:00:52]}  Bh2+ {[%clk 0:00:49]} 19. Kf1 {[%clk 0:00:50]}  Bg3 {[%clk 0:00:49]} 20. Qe2 {[%clk 0:00:37]}  Bc6 {[%clk 0:00:48]} 21. d5 {[%clk 0:00:36]}  Re8 {[%clk 0:00:48]} 22. dxc6 {[%clk 0:00:02]}  Rxe2 {[%clk 0:00:46]} 23. Kxe2 {[%clk 0:00:02]}  Qe4+ {[%clk 0:00:45]} 24. Be3 {[%clk 0:00:02]}  Qxg2+ {[%clk 0:00:46]} 25. Kd3 {[%clk 0:00:02]}  Qxb2 {[%clk 0:00:44]} 26. Nd2 {[%clk 0:00:00]}  Qxa1 {[%clk 0:00:44]} 0-1


[Site "https://www.chess.com"]

[Event "Titled Tuesday Blitz August 08 Late 2023"]
[White "Castella Garcia, Fausto"]
[Black "Adel, Sara"]
[WhiteFideId "3501922"]
[BlackFideId "10616764"]
[WhiteElo "2334"]
[BlackElo "2162"]
[Result "1-0"]
[Round "5"]
[TimeControl "180+1"]
[Date "2023.08.08"]
[WhiteClock "0:00:08"]
[BlackClock "0:00:46"]
[Board "155"]

1. e4 {[%clk 0:03:00]}  c6 {[%clk 0:02:59]} 2. Nc3 {[%clk 0:02:59]}  d5 {[%clk 0:02:59]} 3. Nf3 {[%clk 0:02:59]}  Bg4 {[%clk 0:02:58]} 4. h3 {[%clk 0:02:59]}  Bxf3 {[%clk 0:02:58]} 5. Qxf3 {[%clk 0:02:59]}  dxe4 {[%clk 0:02:58]} 6. Nxe4 {[%clk 0:02:59]}  Nd7 {[%clk 0:02:59]} 7. d4 {[%clk 0:02:59]}  e5 {[%clk 0:02:57]} 8. Bc4 {[%clk 0:02:45]}  Qe7 {[%clk 0:02:52]} 9. O-O {[%clk 0:02:09]}  O-O-O {[%clk 0:02:50]} 10. d5 {[%clk 0:01:55]}  cxd5 {[%clk 0:02:48]} 11. Bxd5 {[%clk 0:01:55]}  Nb6 {[%clk 0:02:41]} 12. Bxf7 {[%clk 0:01:50]}  Nf6 {[%clk 0:02:39]} 13. Bb3 {[%clk 0:01:46]}  Rd4 {[%clk 0:02:35]} 14. Bg5 {[%clk 0:01:42]}  Nbd7 {[%clk 0:02:29]} 15. Rfe1 {[%clk 0:01:28]}  h6 {[%clk 0:02:28]} 16. Bh4 {[%clk 0:01:19]}  g5 {[%clk 0:02:21]} 17. Bg3 {[%clk 0:01:18]}  Bg7 {[%clk 0:02:07]} 18. c3 {[%clk 0:01:15]}  Rxe4 {[%clk 0:02:01]} 19. Rxe4 {[%clk 0:01:13]}  Nxe4 {[%clk 0:01:57]} 20. Qxe4 {[%clk 0:01:14]}  Nc5 {[%clk 0:01:56]} 21. Qg4+ {[%clk 0:01:07]}  Qd7 {[%clk 0:01:52]} 22. Bc2 {[%clk 0:00:58]}  Qxg4 {[%clk 0:01:51]} 23. hxg4 {[%clk 0:00:59]}  Rd8 {[%clk 0:01:51]} 24. Re1 {[%clk 0:00:46]}  Rd2 {[%clk 0:01:50]} 25. Bf5+ {[%clk 0:00:45]}  Kd8 {[%clk 0:01:49]} 26. Bxe5 {[%clk 0:00:45]}  Bxe5 {[%clk 0:01:42]} 27. Rxe5 {[%clk 0:00:46]}  Na4 {[%clk 0:01:42]} 28. b3 {[%clk 0:00:39]}  Nxc3 {[%clk 0:01:42]} 29. a4 {[%clk 0:00:39]}  Nd1 {[%clk 0:01:40]} 30. f3 {[%clk 0:00:37]}  Kc7 {[%clk 0:01:35]} 31. Re7+ {[%clk 0:00:36]}  Kb6 {[%clk 0:01:30]} 32. Be4 {[%clk 0:00:36]}  Nc3 {[%clk 0:01:24]} 33. Bxb7 {[%clk 0:00:35]}  Rb2 {[%clk 0:01:21]} 34. Ba8 {[%clk 0:00:32]}  a5 {[%clk 0:01:13]} 35. Rb7+ {[%clk 0:00:29]}  Kc5 {[%clk 0:01:14]} 36. Rc7+ {[%clk 0:00:29]}  Kb4 {[%clk 0:01:13]} 37. Rb7+ {[%clk 0:00:28]}  Ka3 {[%clk 0:01:13]} 38. g3 {[%clk 0:00:25]}  Ne2+ {[%clk 0:01:10]} 39. Kf2 {[%clk 0:00:23]}  Nd4+ {[%clk 0:01:09]} 40. Ke3 {[%clk 0:00:22]}  Rxb3+ {[%clk 0:00:54]} 41. Rxb3+ {[%clk 0:00:20]}  Nxb3 {[%clk 0:00:54]} 42. f4 {[%clk 0:00:16]}  gxf4+ {[%clk 0:00:54]} 43. gxf4 {[%clk 0:00:17]}  Kxa4 {[%clk 0:00:54]} 44. f5 {[%clk 0:00:16]}  Nc5 {[%clk 0:00:55]} 45. f6 {[%clk 0:00:15]}  Ne6 {[%clk 0:00:55]} 46. Bd5 {[%clk 0:00:13]}  Nf8 {[%clk 0:00:54]} 47. Ke4 {[%clk 0:00:14]}  Kb4 {[%clk 0:00:55]} 48. Ke5 {[%clk 0:00:13]}  a4 {[%clk 0:00:55]} 49. Kd6 {[%clk 0:00:13]}  a3 {[%clk 0:00:55]} 50. Ke7 {[%clk 0:00:12]}  Ng6+ {[%clk 0:00:54]} 51. Kf7 {[%clk 0:00:12]}  Nf4 {[%clk 0:00:54]} 52. Ba2 {[%clk 0:00:11]}  Kc5 {[%clk 0:00:51]} 53. Kg7 {[%clk 0:00:11]}  Nd5 {[%clk 0:00:52]} 54. f7 {[%clk 0:00:10]}  Nc3 {[%clk 0:00:45]} 55. f8=Q+ {[%clk 0:00:09]}  Kd4 {[%clk 0:00:44]} 56. Bg8 {[%clk 0:00:08]}  a2 {[%clk 0:00:44]} 57. Qf6+ {[%clk 0:00:08]}  Kd3 {[%clk 0:00:44]} 58. Bxa2 {[%clk 0:00:08]}  Nxa2 {[%clk 0:00:44]} 59. Kxh6 {[%clk 0:00:08]}  Nb4 {[%clk 0:00:44]} 60. g5 {[%clk 0:00:08]}  Nc2 {[%clk 0:00:44]} 61. g6 {[%clk 0:00:08]}  Ne3 {[%clk 0:00:45]} 62. Qd8+ {[%clk 0:00:07]}  Ke4 {[%clk 0:00:45]} 63. g7 {[%clk 0:00:07]}  Nf5+ {[%clk 0:00:45]} 64. Kh7 {[%clk 0:00:07]}  Nxg7 {[%clk 0:00:44]} 65. Kxg7 {[%clk 0:00:08]}  Kf4 {[%clk 0:00:44]} 66. Qe7 {[%clk 0:00:07]}  Kf3 {[%clk 0:00:45]} 67. Qe5 {[%clk 0:00:07]}  Kf2 {[%clk 0:00:45]} 68. Qc3 {[%clk 0:00:07]}  Ke2 {[%clk 0:00:45]} 69. Kg6 {[%clk 0:00:08]}  Kf2 {[%clk 0:00:46]} 70. Kg5 {[%clk 0:00:08]}  Ke2 {[%clk 0:00:46]} 71. Kf4 {[%clk 0:00:08]}  Kf2 {[%clk 0:00:47]} 72. Qd2+ {[%clk 0:00:09]}  Kf1 {[%clk 0:00:47]} 73. Kg3 {[%clk 0:00:08]}  Kg1 {[%clk 0:00:46]} 74. Qe1# {[%clk 0:00:08]} 1-0


[Site "https://www.chess.com"]

[Event "Titled Tuesday Blitz August 08 Late 2023"]
[White "Stachanczyk, Jacek"]
[Black "Burke, Paul"]
[WhiteFideId "1116657"]
[BlackFideId "2605767"]
[WhiteElo "2321"]
[BlackElo "1866"]
[Result "1-0"]
[Round "5"]
[TimeControl "180+1"]
[Date "2023.08.08"]
[WhiteClock "0:01:24"]
[BlackClock "0:00:33"]
[Board "160"]

1. c4 {[%clk 0:02:53]}  a6 {[%clk 0:02:59]} 2. e4 {[%clk 0:02:51]}  d6 {[%clk 0:02:59]} 3. Nf3 {[%clk 0:02:51]}  g6 {[%clk 0:02:59]} 4. d4 {[%clk 0:02:51]}  Bg7 {[%clk 0:02:57]} 5. Nc3 {[%clk 0:02:52]}  Nd7 {[%clk 0:02:57]} 6. Be2 {[%clk 0:02:51]}  h6 {[%clk 0:02:57]} 7. O-O {[%clk 0:02:51]}  e5 {[%clk 0:02:57]} 8. d5 {[%clk 0:02:47]}  Ne7 {[%clk 0:02:57]} 9. a3 {[%clk 0:02:40]}  O-O {[%clk 0:02:57]} 10. b4 {[%clk 0:02:40]}  f5 {[%clk 0:02:57]} 11. Bb2 {[%clk 0:02:40]}  f4 {[%clk 0:02:56]} 12. Rc1 {[%clk 0:02:39]}  g5 {[%clk 0:02:55]} 13. Ne1 {[%clk 0:02:40]}  Nf6 {[%clk 0:02:53]} 14. f3 {[%clk 0:02:38]}  Qe8 {[%clk 0:02:52]} 15. Nd3 {[%clk 0:02:38]}  Qg6 {[%clk 0:02:51]} 16. c5 {[%clk 0:02:39]}  h5 {[%clk 0:02:51]} 17. cxd6 {[%clk 0:02:38]}  cxd6 {[%clk 0:02:51]} 18. Na4 {[%clk 0:02:38]}  g4 {[%clk 0:02:39]} 19. Kh1 {[%clk 0:02:31]}  Qg5 {[%clk 0:02:32]} 20. Nb6 {[%clk 0:02:30]}  Qh4 {[%clk 0:02:26]} 21. Nxc8 {[%clk 0:02:21]}  Raxc8 {[%clk 0:02:21]} 22. Qd2 {[%clk 0:01:57]}  g3 {[%clk 0:02:18]} 23. h3 {[%clk 0:01:56]}  Ng6 {[%clk 0:01:50]} 24. Rxc8 {[%clk 0:01:55]}  Rxc8 {[%clk 0:01:48]} 25. Rc1 {[%clk 0:01:55]}  Rxc1+ {[%clk 0:01:39]} 26. Qxc1 {[%clk 0:01:56]}  Kh7 {[%clk 0:01:11]} 27. Qc8 {[%clk 0:01:54]}  Qg5 {[%clk 0:00:59]} 28. Kg1 {[%clk 0:01:38]}  Nxe4 {[%clk 0:00:58]} 29. fxe4 {[%clk 0:01:37]}  f3 {[%clk 0:00:58]} 30. Bc1 {[%clk 0:01:30]}  Nf4 {[%clk 0:00:33]} 31. Bxf3 {[%clk 0:01:24]} 1-0


[Site "https://www.chess.com"]

[Event "Titled Tuesday Blitz August 08 Late 2023"]
[White "alfianasybullina"]
[Black "Doluhanova, Evgeniya"]
[BlackFideId "14112035"]
[WhiteElo "2245"]
[BlackElo "2311"]
[Result "0-1"]
[Round "5"]
[TimeControl "180+1"]
[Date "2023.08.08"]
[WhiteClock "0:00:08"]
[BlackClock "0:00:12"]
[Board "163"]

1. Nf3 {[%clk 0:03:00]}  Nf6 {[%clk 0:02:59]} 2. d4 {[%clk 0:02:59]}  e6 {[%clk 0:02:57]} 3. Bf4 {[%clk 0:02:59]}  c5 {[%clk 0:02:55]} 4. c3 {[%clk 0:02:58]}  b6 {[%clk 0:02:49]} 5. Nbd2 {[%clk 0:02:56]}  Bb7 {[%clk 0:02:49]} 6. e3 {[%clk 0:02:55]}  Nc6 {[%clk 0:02:45]} 7. Be2 {[%clk 0:02:52]}  Be7 {[%clk 0:02:44]} 8. O-O {[%clk 0:02:51]}  O-O {[%clk 0:02:44]} 9. c4 {[%clk 0:02:49]}  d5 {[%clk 0:02:39]} 10. dxc5 {[%clk 0:02:45]}  Bxc5 {[%clk 0:02:36]} 11. a3 {[%clk 0:02:41]}  dxc4 {[%clk 0:02:32]} 12. Nxc4 {[%clk 0:02:39]}  Nd5 {[%clk 0:02:23]} 13. Bg3 {[%clk 0:02:35]}  a5 {[%clk 0:02:21]} 14. Rc1 {[%clk 0:02:30]}  Ba6 {[%clk 0:02:18]} 15. Nce5 {[%clk 0:02:27]}  Nxe5 {[%clk 0:02:16]} 16. Nxe5 {[%clk 0:02:19]}  Bb7 {[%clk 0:02:01]} 17. e4 {[%clk 0:02:13]}  Nf6 {[%clk 0:01:58]} 18. Rxc5 {[%clk 0:01:53]}  Qxd1 {[%clk 0:01:52]} 19. Rxd1 {[%clk 0:01:49]}  bxc5 {[%clk 0:01:52]} 20. f3 {[%clk 0:01:45]}  Rfd8 {[%clk 0:01:50]} 21. Rc1 {[%clk 0:01:44]}  Rd2 {[%clk 0:01:47]} 22. Bf1 {[%clk 0:01:44]}  Rxb2 {[%clk 0:01:45]} 23. Rxc5 {[%clk 0:01:44]}  Rb1 {[%clk 0:01:42]} 24. Kf2 {[%clk 0:01:37]}  Bxe4 {[%clk 0:01:28]} 25. Nxf7 {[%clk 0:01:30]}  Rxf1+ {[%clk 0:01:11]} 26. Kxf1 {[%clk 0:01:25]}  Bd3+ {[%clk 0:01:11]} 27. Kf2 {[%clk 0:01:23]}  Kxf7 {[%clk 0:01:11]} 28. Ke3 {[%clk 0:01:21]}  Bf5 {[%clk 0:01:04]} 29. Be5 {[%clk 0:01:20]}  Nd5+ {[%clk 0:01:03]} 30. Kf2 {[%clk 0:01:20]}  a4 {[%clk 0:01:01]} 31. g4 {[%clk 0:01:20]}  Bd3 {[%clk 0:00:58]} 32. Kg3 {[%clk 0:01:15]}  Ba6 {[%clk 0:00:42]} 33. Ra5 {[%clk 0:01:09]}  Bb7 {[%clk 0:00:41]} 34. Rb5 {[%clk 0:01:09]}  Bc6 {[%clk 0:00:41]} 35. Rc5 {[%clk 0:01:05]}  Rc8 {[%clk 0:00:39]} 36. Rc4 {[%clk 0:01:03]}  Bd7 {[%clk 0:00:38]} 37. Rd4 {[%clk 0:01:00]}  Rc2 {[%clk 0:00:34]} 38. h4 {[%clk 0:00:55]}  h6 {[%clk 0:00:33]} 39. g5 {[%clk 0:00:55]}  hxg5 {[%clk 0:00:33]} 40. hxg5 {[%clk 0:00:54]}  Kg6 {[%clk 0:00:33]} 41. Rg4 {[%clk 0:00:45]}  Re2 {[%clk 0:00:32]} 42. Bd6 {[%clk 0:00:36]}  Re3 {[%clk 0:00:32]} 43. Rc4 {[%clk 0:00:33]}  Kxg5 {[%clk 0:00:17]} 44. Bc5 {[%clk 0:00:32]}  Rb3 {[%clk 0:00:16]} 45. Bd4 {[%clk 0:00:29]}  Kg6 {[%clk 0:00:16]} 46. Bc5 {[%clk 0:00:28]}  Bb5 {[%clk 0:00:14]} 47. Rg4+ {[%clk 0:00:27]}  Kf7 {[%clk 0:00:14]} 48. Bd4 {[%clk 0:00:26]}  g6 {[%clk 0:00:12]} 49. Bc5 {[%clk 0:00:25]}  Be2 {[%clk 0:00:12]} 50. Kf2 {[%clk 0:00:23]}  Bxf3 {[%clk 0:00:12]} 51. Rg3 {[%clk 0:00:23]}  Be4 {[%clk 0:00:11]} 52. Rg4 {[%clk 0:00:22]}  Bf5 {[%clk 0:00:11]} 53. Rxa4 {[%clk 0:00:22]}  Rb2+ {[%clk 0:00:11]} 54. Ke1 {[%clk 0:00:21]}  Nc3 {[%clk 0:00:11]} 55. Ra7+ {[%clk 0:00:20]}  Ke8 {[%clk 0:00:10]} 56. Re7+ {[%clk 0:00:20]}  Kd8 {[%clk 0:00:10]} 57. Rg7 {[%clk 0:00:18]}  Rb1+ {[%clk 0:00:11]} 58. Kd2 {[%clk 0:00:18]}  Ne4+ {[%clk 0:00:11]} 59. Kc2 {[%clk 0:00:18]}  Nxc5+ {[%clk 0:00:11]} 60. Kc3 {[%clk 0:00:18]}  Na4+ {[%clk 0:00:11]} 61. Kd4 {[%clk 0:00:17]}  Rd1+ {[%clk 0:00:11]} 62. Ke5 {[%clk 0:00:17]}  Nb6 {[%clk 0:00:11]} 63. Kf6 {[%clk 0:00:17]}  Nd7+ {[%clk 0:00:11]} 64. Kg5 {[%clk 0:00:16]}  Kc7 {[%clk 0:00:12]} 65. a4 {[%clk 0:00:14]}  Ra1 {[%clk 0:00:12]} 66. a5 {[%clk 0:00:13]}  Rxa5 {[%clk 0:00:12]} 67. Kh6 {[%clk 0:00:13]}  Ra1 {[%clk 0:00:11]} 68. Rg8 {[%clk 0:00:13]}  Rh1+ {[%clk 0:00:10]} 69. Kg5 {[%clk 0:00:13]}  Rg1+ {[%clk 0:00:10]} 70. Kh6 {[%clk 0:00:13]}  g5 {[%clk 0:00:11]} 71. Kg7 {[%clk 0:00:13]}  g4 {[%clk 0:00:11]} 72. Kf7 {[%clk 0:00:13]}  g3 {[%clk 0:00:11]} 73. Ke7 {[%clk 0:00:12]}  g2 {[%clk 0:00:12]} 74. Rd8 {[%clk 0:00:13]}  Rd1 {[%clk 0:00:11]} 75. Rg8 {[%clk 0:00:08]}  g1=Q {[%clk 0:00:12]} 0-1


[Site "https://www.chess.com"]